[Event "MČR 2022 rapid"]
[Site "Turnov, Czech Republic"]
[Date "2022.09.11"]
[Round "8.6"]
[White "Mikeš, Jan"]
[Black "Jansa, Vlastimil"]
[Result "0-1"]
[TimeControl "2x 15 min + 5s/move"]
[WhiteElo "2249"]
[BlackElo "2452"]

1. e4 {[%clk 00:15:07]} c5 {[%clk 00:15:09]} 2. Nc3 {[%clk 00:15:10]} Nc6
{[%clk 00:15:11]} {[%emt 00:00:04]} 3. Bb5 {[%clk 00:15:13]} Nd4 {[%clk
00:15:13]} 4. Nf3 {[%clk 00:15:17]} a6 {[%clk 00:14:51]} {[%emt 00:00:28]} 5.
Bd3 {[%clk 00:15:20]} g6 {[%clk 00:14:40]} {[%emt 00:00:14]} 6. Nxd4 {[%clk
00:15:15]} {[%emt 00:00:14]} cxd4 {[%clk 00:14:44]} 7. Ne2 {[%clk 00:15:18]}
Bg7 {[%clk 00:14:47]} 8. c3 {[%clk 00:14:52]} {[%emt 00:00:31]} dxc3 {[%clk
00:14:47]} {[%emt 00:00:10]} 9. dxc3 {[%clk 00:14:05]} {[%emt 00:00:48]} d5
{[%clk 00:14:37]} {[%emt 00:00:21]} 10. O-O {[%clk 00:13:18]} {[%emt 00:00:45]}
Nf6 {[%clk 00:14:08]} {[%emt 00:00:36]} 11. e5 {[%clk 00:11:26]} {[%emt
00:01:55]} Nd7 {[%clk 00:14:06]} {[%emt 00:04:11]} 12. f4 {[%clk 00:10:56]}
{[%emt 00:01:17]} O-O {[%clk 00:14:04]} 13. Be3 {[%clk 00:10:17]} Qc7 {[%clk
00:13:31]} 14. Bc2 {[%clk 00:09:17]} e6 {[%clk 00:13:15]} 15. Nd4 {[%clk
00:09:04]} {[%emt 00:00:04]} Nb6 {[%clk 00:12:58]} 16. h4 {[%clk 00:08:04]} Nc4
{[%clk 00:11:52]} {[%emt 00:01:02]} 17. Bc1 {[%clk 00:08:06]} {[%emt 00:00:06]}
f6 {[%clk 00:11:35]} {[%emt 00:00:18]} 18. exf6 {[%clk 00:07:39]} {[%emt
00:00:36]} Rxf6 {[%clk 00:11:35]} {[%emt 00:00:05]} 19. h5 {[%clk 00:07:28]}
{[%emt 00:00:23]} Bd7 {[%clk 00:11:24]} {[%emt 00:00:05]} 20. hxg6 {[%clk
00:06:52]} {[%emt 00:00:46]} hxg6 {[%clk 00:11:26]} 21. Qe1 {[%clk 00:06:08]}
{[%emt 00:00:47]} Raf8 {[%clk 00:11:17]} {[%emt 00:00:15]} 22. Qg3 {[%clk
00:05:55]} {[%emt 00:00:23]} e5 {[%clk 00:10:58]} {[%emt 00:00:23]} 23. b3
{[%clk 00:04:12]} {[%emt 00:01:44]} Nd6 {[%clk 00:10:03]} {[%emt 00:00:59]} 24.
Ne2 {[%clk 00:04:01]} {[%emt 00:00:17]} Bb5 {[%clk 00:09:32]} {[%emt 00:00:36]}
25. c4 {[%clk 00:02:55]} {[%emt 00:01:11]} dxc4 {[%clk 00:09:15]} {[%emt
00:00:22]} 26. Nc3 {[%clk 00:01:38]} {[%emt 00:01:21]} Bc6 {[%clk 00:08:45]}
{[%emt 00:00:35]} 27. Ba3 {[%clk 00:01:30]} {[%emt 00:00:14]} exf4 {[%clk
00:08:28]} {[%emt 00:00:22]} 28. Qh3 {[%clk 00:01:29]} {[%emt 00:00:06]} Qa5
{[%clk 00:07:37]} {[%emt 00:01:00]} 29. Bb2 {[%clk 00:01:23]} {[%emt 00:00:07]}
Qc5+ {[%clk 00:07:19]} {[%emt 00:00:26]} 30. Rf2 {[%clk 00:01:07]} {[%emt
00:00:17]} f3 {[%clk 00:06:33]} {[%emt 00:00:52]} 31. g4 {[%clk 00:00:59]}
{[%emt 00:00:13]} Re6 {[%clk 00:06:12]} {[%emt 00:00:25]} 32. b4 {[%clk
00:00:44]} {[%emt 00:00:20]} Qe3 {[%clk 00:05:52]} {[%emt 00:00:27]} 33. g5
{[%clk 00:00:32]} {[%emt 00:00:15]} Nf5 {[%clk 00:05:16]} {[%emt 00:00:43]} 0-1

[Event "MČR 2022 rapid"]
[Site "Turnov, Czech Republic"]
[Date "2022.09.11"]
[Round "8.7"]
[White "Červený, Martin"]
[Black "Jirásko, Miroslav"]
[Result "1/2-1/2"]
[TimeControl "2x 15 min + 5s/move"]
[WhiteElo "2413"]
[BlackElo "1795"]

1. d4 {[%clk 00:15:09]} {[%emt 00:06:26]} Nf6 {[%clk 00:15:08]} 2. c4 {[%clk
00:15:13]} g6 {[%clk 00:15:12]} 3. Nc3 {[%clk 00:15:17]} Bg7 {[%clk 00:15:16]}
4. e4 {[%clk 00:15:09]} {[%emt 00:00:04]} d6 {[%clk 00:15:19]} 5. f3 {[%clk
00:15:13]} O-O {[%clk 00:15:20]} 6. Bg5 {[%clk 00:15:16]} Nc6 {[%clk 00:14:13]}
{[%emt 00:00:47]} 7. Nge2 {[%clk 00:15:16]} {[%emt 00:00:05]} e5 {[%clk
00:13:46]} {[%emt 00:00:45]} 8. d5 {[%clk 00:14:36]} {[%emt 00:00:33]} Nd4
{[%clk 00:13:44]} {[%emt 00:00:07]} 9. Be3 {[%clk 00:14:33]} {[%emt 00:00:08]}
c5 {[%clk 00:13:29]} {[%emt 00:00:20]} 10. dxc6 {[%clk 00:14:36]} {[%emt
00:00:06]} Nxc6 {[%clk 00:13:28]} {[%emt 00:00:04]} 11. Qd2 {[%clk 00:14:32]}
{[%emt 00:00:07]} Be6 {[%clk 00:13:24]} {[%emt 00:00:09]} 12. b3 {[%clk
00:14:14]} {[%emt 00:00:24]} a6 {[%clk 00:12:45]} {[%emt 00:00:47]} 13. Rd1
{[%clk 00:13:55]} {[%emt 00:00:19]} Qa5 {[%clk 00:12:15]} {[%emt 00:00:36]} 14.
Nd5 {[%clk 00:12:43]} {[%emt 00:01:18]} Qa3 {[%clk 00:10:01]} {[%emt 00:02:19]}
15. Nec3 {[%clk 00:10:14]} {[%emt 00:02:34]} Nd4 {[%clk 00:09:17]} {[%emt
00:00:49]} 16. Bd3 {[%clk 00:09:06]} {[%emt 00:01:13]} Nxd5 {[%clk 00:07:48]}
{[%emt 00:01:35]} 17. Nxd5 {[%clk 00:08:11]} {[%emt 00:01:08]} Bxd5 {[%clk
00:07:35]} {[%emt 00:00:15]} 18. cxd5 {[%clk 00:08:15]} a5 {[%clk 00:07:12]}
{[%emt 00:00:22]} 19. O-O {[%clk 00:06:56]} {[%emt 00:01:24]} Rfc8 {[%clk
00:06:28]} {[%emt 00:00:58]} 20. Rc1 {[%clk 00:06:58]} Bf8 {[%clk 00:05:29]}
{[%emt 00:00:59]} 21. f4 {[%clk 00:06:44]} {[%emt 00:00:18]} Bh6 {[%clk
00:04:36]} {[%emt 00:00:59]} 22. Qf2 {[%clk 00:04:15]} {[%emt 00:02:36]} a4
{[%clk 00:01:46]} {[%emt 00:02:52]} 23. fxe5 {[%clk 00:02:48]} {[%emt
00:01:57]} Bxe3 {[%clk 00:01:49]} 24. Qxe3 {[%clk 00:02:51]} dxe5 {[%clk
00:01:52]} 25. Rxc8+ {[%clk 00:02:45]} Rxc8 {[%clk 00:01:55]} 26. Qf2 {[%clk
00:02:44]} {[%emt 00:00:14]} Qe7 {[%clk 00:01:50]} 27. Bc4 {[%clk 00:02:03]}
{[%emt 00:00:48]} Rf8 {[%clk 00:01:23]} {[%emt 00:00:27]} 28. bxa4 {[%clk
00:02:00]} {[%emt 00:00:09]} Kg7 {[%clk 00:01:15]} {[%emt 00:00:15]} 29. h3
{[%clk 00:01:54]} {[%emt 00:00:08]} f6 {[%clk 00:00:54]} {[%emt 00:00:26]} 30.
Rb1 {[%clk 00:01:52]} {[%emt 00:00:12]} Rc8 {[%clk 00:00:50]} {[%emt 00:00:09]}
31. d6 {[%clk 00:01:20]} {[%emt 00:00:34]} Qxd6 {[%clk 00:00:52]} {[%emt
00:00:05]} 32. Rxb7+ {[%clk 00:01:23]} Rc7 {[%clk 00:00:56]} {[%emt 00:00:05]}
33. Rxc7+ {[%clk 00:01:27]} Qxc7 {[%clk 00:01:00]} 34. Bf1 {[%clk 00:01:01]}
{[%emt 00:00:51]} Qa7 {[%clk 00:00:31]} {[%emt 00:00:11]} 35. Bb5 {[%clk
00:00:51]} {[%emt 00:00:14]} Qc5 {[%clk 00:00:23]} {[%emt 00:00:14]} 36. Kh1
{[%clk 00:00:43]} {[%emt 00:00:13]} Qc1+ {[%clk 00:00:20]} {[%emt 00:00:07]} 37.
Kh2 {[%clk 00:00:37]} {[%emt 00:00:30]} Qc3 {[%clk 00:00:21]} 38. Kh1 {[%clk
00:00:24]} {[%emt 00:00:09]} Qc1+ {[%clk 00:00:09]} {[%emt 00:00:16]} 39. Kh2
{[%clk 00:00:28]} Qc3 40. Kh1 Qb4 {[%clk 00:00:06]} {[%emt 00:00:13]} 41. Qf1
{[%clk 00:00:25]} {[%emt 00:00:20]} Qd2 {[%clk 00:00:06]} 42. Bc4 {[%clk
00:00:20]} {[%emt 00:00:06]} Qb4 {[%clk 00:00:09]} {[%emt 00:00:04]} 43. Bb5
{[%clk 00:00:24]} Qd2 {[%clk 00:00:12]} {[%emt 00:00:05]} 44. Bc4 {[%clk
00:00:28]} Qb4 {[%clk 00:00:08]} {[%emt 00:00:06]} 45. Bb3 {[%clk 00:00:32]}
Qd2 {[%clk 00:00:07]} {[%emt 00:00:10]} 46. Bc4 {[%clk 00:00:35]} 1/2-1/2

[Event "MČR 2022 rapid"]
[Site "Turnov, Czech Republic"]
[Date "2022.09.11"]
[Round "8.8"]
[White "Václavík, Jan"]
[Black "Baláček, Tadeáš"]
[Result "0-1"]
[TimeControl "2x 15 min + 5s/move"]
[WhiteElo "1899"]
[BlackElo "2247"]

1. Nf3 {[%clk 00:15:07]} {[%emt 00:00:04]} d5 {[%clk 00:15:09]} 2. d4 {[%clk
00:14:49]} {[%emt 00:00:21]} Nf6 {[%clk 00:15:11]} {[%emt 00:00:06]} 3. g3
{[%clk 00:14:50]} {[%emt 00:00:04]} c6 {[%clk 00:15:13]} {[%emt 00:00:09]} 4.
Bg2 {[%clk 00:14:50]} Bf5 {[%clk 00:15:16]} 5. c4 {[%clk 00:14:46]} {[%emt
00:00:06]} e6 {[%clk 00:15:19]} {[%emt 00:00:05]} 6. Nc3 {[%clk 00:14:39]}
{[%emt 00:00:09]} h6 {[%clk 00:15:21]} {[%emt 00:00:15]} 7. O-O {[%clk
00:14:28]} {[%emt 00:00:04]} Nbd7 {[%clk 00:15:24]} {[%emt 00:00:06]} 8. b3
{[%clk 00:13:33]} {[%emt 00:00:57]} Be7 {[%clk 00:15:24]} {[%emt 00:00:05]} 9.
Bf4 {[%clk 00:13:10]} {[%emt 00:00:36]} O-O {[%clk 00:15:24]} 10. Rc1 {[%clk
00:12:36]} {[%emt 00:00:38]} Ba3 {[%clk 00:15:22]} {[%emt 00:00:12]} 11. Nd2
{[%clk 00:12:17]} {[%emt 00:00:23]} g5 {[%clk 00:14:11]} {[%emt 00:01:11]} 12.
e4 dxe4 {[%clk 00:13:20]} 13. Be3 {[%clk 00:11:27]} Bxc1 {[%clk 00:11:21]}
{[%emt 00:02:07]} 14. Qxc1 {[%clk 00:11:30]} Ng4 {[%clk 00:09:00]} {[%emt
00:06:12]} 15. h3 {[%clk 00:06:28]} {[%emt 00:05:26]} Nxe3 {[%clk 00:09:00]} 16.
fxe3 {[%clk 00:06:31]} Qc7 {[%clk 00:07:24]} 17. Qe1 {[%clk 00:06:31]} Qa5
{[%clk 00:05:47]} 18. Qc1 {[%clk 00:05:52]} {[%emt 00:00:14]} Bg6 {[%clk
00:05:04]} {[%emt 00:00:49]} 19. Ndxe4 {[%clk 00:04:42]} {[%emt 00:01:14]} f5
{[%clk 00:04:57]} {[%emt 00:00:13]} 20. Nd6 {[%clk 00:03:33]} {[%emt 00:01:13]}
Qc7 {[%clk 00:04:57]} {[%emt 00:00:06]} 21. c5 {[%clk 00:03:37]} Nf6 {[%clk
00:04:58]} {[%emt 00:00:05]} 22. Qe1 {[%clk 00:02:36]} {[%emt 00:01:08]} Rad8
{[%clk 00:03:54]} {[%emt 00:01:07]} 23. Nc4 {[%clk 00:02:38]} {[%emt 00:00:05]}
Nd7 {[%clk 00:03:45]} {[%emt 00:00:17]} 24. Nd6 {[%clk 00:01:25]} {[%emt
00:01:13]} e5 {[%clk 00:03:02]} {[%emt 00:00:48]} 25. Qe2 {[%clk 00:01:04]}
{[%emt 00:00:31]} Kh7 {[%clk 00:02:44]} {[%emt 00:00:19]} 26. Qc4 {[%clk
00:00:26]} {[%emt 00:00:50]} exd4 {[%clk 00:02:09]} {[%emt 00:00:35]} 27. exd4
{[%clk 00:00:29]} {[%emt 00:00:05]} Nf6 {[%clk 00:01:56]} {[%emt 00:00:12]} 28.
Qe6 {[%clk 00:00:18]} {[%emt 00:00:20]} Rxd6 {[%clk 00:00:51]} {[%emt
00:01:05]} 29. cxd6 {[%clk 00:00:20]} {[%emt 00:00:05]} Qd7 {[%clk 00:00:56]}
30. Qe7+ {[%clk 00:00:07]} {[%emt 00:00:26]} Rf7 {[%clk 00:00:41]} {[%emt
00:00:14]} 31. Qe5 {[%clk 00:00:11]} Ne8 {[%clk 00:00:24]} {[%emt 00:00:20]} 32.
d5 {[%clk 00:00:10]} {[%emt 00:00:09]} c5 {[%clk 00:00:24]} {[%emt 00:00:05]}
33. Re1 {[%clk 00:00:07]} {[%emt 00:00:05]} Nxd6 {[%clk 00:00:25]} {[%emt
00:00:06]} 34. Qe3 {[%clk 00:00:08]} {[%emt 00:00:23]} b6 {[%clk 00:00:24]} 35.
a4 {[%clk 00:00:09]} Kg7 {[%clk 00:00:24]} 36. Qe5+ {[%clk 00:00:13]} Kg8
{[%clk 00:00:21]} {[%emt 00:00:05]} 37. Qe6 {[%clk 00:00:10]} {[%emt 00:00:10]}
Kg7 {[%clk 00:00:14]} {[%emt 00:00:08]} 38. Qe5+ {[%clk 00:00:13]} {[%emt
00:00:23]} Kg8 {[%clk 00:00:11]} 39. Qe6 {[%clk 00:00:11]} Kg7 {[%clk
00:00:11]} {[%emt 00:00:04]} 40. Bf1 {[%clk 00:00:10]} {[%emt 00:00:05]} Qxe6
{[%clk 00:00:10]} {[%emt 00:00:04]} 41. dxe6 {[%clk 00:00:14]} Re7 {[%clk
00:00:13]} {[%emt 00:00:05]} 42. Nd5 {[%clk 00:00:16]} {[%emt 00:00:04]} Re8
{[%clk 00:00:17]} 43. Ba6 {[%clk 00:00:08]} {[%emt 00:00:34]} 0-1

[Event "MČR 2022 rapid"]
[Site "Turnov, Czech Republic"]
[Date "2022.09.11"]
[Round "9.1"]
[White "Viták, Jiří"]
[Black "Plát, Vojtěch"]
[Result "0-1"]
[TimeControl "2x 15 min + 5s/move"]
[WhiteElo "1820"]
[BlackElo "2563"]

1. d4 {[%clk 00:15:07]} {[%emt 00:00:05]} d6 {[%clk 00:15:09]} 2. Nf3 {[%clk
00:15:01]} {[%emt 00:00:11]} Bg4 {[%clk 00:15:10]} {[%emt 00:00:04]} 3. c4
{[%clk 00:14:57]} {[%emt 00:00:09]} c6 {[%clk 00:15:14]} 4. Qb3 {[%clk
00:14:57]} {[%emt 00:00:11]} Qb6 {[%clk 00:15:11]} {[%emt 00:00:04]} 5. Qxb6
{[%clk 00:14:49]} {[%emt 00:00:12]} axb6 {[%clk 00:15:15]} 6. Nc3 {[%clk
00:14:52]} {[%emt 00:00:06]} Nd7 {[%clk 00:15:06]} {[%emt 00:00:11]} 7. e4
{[%clk 00:14:10]} {[%emt 00:00:46]} e5 {[%clk 00:15:10]} 8. d5 {[%clk
00:14:14]} {[%emt 00:00:10]} Ngf6 {[%clk 00:15:05]} {[%emt 00:00:09]} 9. Be3
{[%clk 00:14:05]} {[%emt 00:00:08]} Be7 {[%clk 00:14:59]} {[%emt 00:00:15]} 10.
Nd2 {[%clk 00:14:07]} O-O {[%clk 00:14:44]} {[%emt 00:00:17]} 11. Be2 {[%clk
00:14:01]} {[%emt 00:00:16]} Bxe2 {[%clk 00:14:45]} {[%emt 00:00:05]} 12. Kxe2
{[%clk 00:14:05]} Ng4 {[%clk 00:14:38]} {[%emt 00:00:09]} 13. h3 {[%clk
00:13:41]} {[%emt 00:00:29]} Nxe3 {[%clk 00:14:41]} {[%emt 00:00:13]} 14. fxe3
{[%clk 00:13:45]} Nc5 {[%clk 00:14:34]} {[%emt 00:00:04]} 15. a4 {[%clk
00:11:44]} {[%emt 00:02:02]} Na6 {[%clk 00:14:18]} {[%emt 00:00:21]} 16. Rhf1
{[%clk 00:11:14]} {[%emt 00:00:35]} Nb4 {[%clk 00:14:21]} {[%emt 00:00:19]} 17.
b3 {[%clk 00:11:02]} {[%emt 00:00:05]} g6 {[%clk 00:14:07]} {[%emt 00:00:14]}
18. Rf3 {[%clk 00:10:46]} {[%emt 00:00:22]} Kg7 {[%clk 00:14:07]} {[%emt
00:00:10]} 19. Raf1 {[%clk 00:10:47]} h5 {[%clk 00:14:04]} {[%emt 00:00:06]} 20.
g3 {[%clk 00:10:13]} {[%emt 00:05:33]} Bg5 {[%clk 00:13:57]} 21. Ndb1 {[%clk
00:09:41]} {[%emt 00:01:08]} Rae8 {[%clk 00:13:40]} 22. Rd1 {[%clk 00:08:41]}
Rd8 {[%clk 00:13:22]} 23. Rdf1 {[%clk 00:08:10]} Rc8 {[%clk 00:12:48]} 24. Na3
{[%clk 00:07:57]} {[%emt 00:00:09]} Ra8 {[%clk 00:10:45]} {[%emt 00:00:09]} 25.
Rd1 {[%clk 00:06:35]} {[%emt 00:01:31]} Rfd8 {[%clk 00:10:49]} 26. Rd2 {[%clk
00:05:50]} {[%emt 00:00:48]} Na6 {[%clk 00:10:22]} {[%emt 00:00:35]} 27. Rb2
{[%clk 00:05:32]} {[%emt 00:00:19]} Nc5 {[%clk 00:10:26]} 28. Nc2 {[%clk
00:05:36]} {[%emt 00:00:05]} cxd5 {[%clk 00:09:25]} {[%emt 00:01:07]} 29. cxd5
{[%clk 00:05:36]} {[%emt 00:00:05]} Rdc8 {[%clk 00:09:21]} {[%emt 00:00:07]} 30.
Nb4 {[%clk 00:05:14]} {[%emt 00:00:26]} f5 {[%clk 00:09:04]} {[%emt 00:00:21]}
31. Rf1 {[%clk 00:04:34]} {[%emt 00:00:46]} Nxe4 {[%clk 00:08:52]} {[%emt
00:00:17]} 32. Nxe4 {[%clk 00:04:17]} {[%emt 00:00:22]} fxe4 {[%clk 00:08:56]}
33. Rc2 {[%clk 00:03:20]} {[%emt 00:01:03]} Rc5 {[%clk 00:09:00]} 34. Rxc5
{[%clk 00:03:15]} {[%emt 00:00:11]} bxc5 {[%clk 00:09:03]} {[%emt 00:00:06]} 35.
Nc2 {[%clk 00:03:19]} c4 {[%clk 00:08:49]} {[%emt 00:00:15]} 36. bxc4 {[%clk
00:03:23]} {[%emt 00:00:05]} Rxa4 {[%clk 00:08:53]} 37. Rb1 {[%clk 00:03:27]}
Rxc4 {[%clk 00:08:56]} {[%emt 00:00:05]} 38. Rxb7+ {[%clk 00:03:31]} Kh6 {[%clk
00:08:35]} {[%emt 00:00:27]} 39. Kd2 {[%clk 00:03:34]} Rc5 {[%clk 00:08:18]}
{[%emt 00:00:20]} 40. Nb4 {[%clk 00:03:33]} {[%emt 00:00:05]} Bd8 {[%clk
00:08:21]} 41. Ke2 {[%clk 00:03:08]} {[%emt 00:00:36]} Ba5 {[%clk 00:08:06]}
{[%emt 00:00:16]} 42. Nc6 {[%clk 00:02:44]} {[%emt 00:00:32]} Rxd5 {[%clk
00:07:38]} {[%emt 00:00:33]} 43. Ne7 {[%clk 00:02:31]} {[%emt 00:00:15]} Rd2+
{[%clk 00:07:42]} 44. Kf1 {[%clk 00:02:33]} {[%emt 00:00:05]} Kg5 {[%clk
00:07:24]} {[%emt 00:00:23]} 45. Rb5 {[%clk 00:01:50]} {[%emt 00:00:48]} Ra2
{[%clk 00:06:26]} {[%emt 00:01:02]} 46. Nd5 {[%clk 00:00:57]} {[%emt 00:00:57]}
Ra1+ {[%clk 00:06:19]} {[%emt 00:00:16]} 47. Kg2 {[%clk 00:00:51]} {[%emt
00:00:10]} Be1 {[%clk 00:06:23]} 48. h4+ {[%clk 00:00:27]} {[%emt 00:00:28]}
Kf5 {[%clk 00:06:07]} {[%emt 00:00:20]} 49. Ne7+ {[%clk 00:00:20]} {[%emt
00:00:12]} Kg4 {[%clk 00:06:10]} {[%emt 00:00:10]} 50. Rb2 {[%clk 00:00:14]}
{[%emt 00:00:06]} Bxg3 {[%clk 00:06:08]} {[%emt 00:00:06]} 51. Nxg6 {[%clk
00:00:16]} {[%emt 00:00:04]} Bxh4 {[%clk 00:05:56]} {[%emt 00:00:16]} 52. Rd2
{[%clk 00:00:18]} {[%emt 00:00:05]} Bg3 {[%clk 00:05:59]} 53. Rxd6 {[%clk
00:00:15]} {[%emt 00:00:10]} h4 {[%clk 00:06:00]} {[%emt 00:00:04]} 54. Ne7
{[%clk 00:00:06]} {[%emt 00:00:10]} h3# 0-1

[Event "MČR 2022 rapid"]
[Site "Turnov, Czech Republic"]
[Date "2022.09.11"]
[Round "9.2"]
[White "Jansa, Vlastimil"]
[Black "Macháček, Jan"]
[Result "1-0"]
[TimeControl "2x 15 min + 5s/move"]
[WhiteElo "2452"]
[BlackElo "1747"]

1. e4 {[%clk 00:15:07]} {[%emt 00:00:10]} c5 {[%clk 00:15:09]} 2. Nf3 {[%clk
00:15:11]} d6 {[%clk 00:15:12]} 3. d4 {[%clk 00:15:14]} cxd4 {[%clk 00:15:16]}
4. Nxd4 {[%clk 00:15:18]} {[%emt 00:00:04]} Nf6 {[%clk 00:15:20]} 5. Nc3 {[%clk
00:15:22]} a6 {[%clk 00:15:24]} 6. Be2 {[%clk 00:15:24]} e6 {[%clk 00:15:26]} 7.
O-O {[%clk 00:15:23]} {[%emt 00:00:05]} Be7 {[%clk 00:15:29]} 8. a4 {[%clk
00:15:20]} O-O {[%clk 00:15:12]} 9. a5 {[%clk 00:15:19]} Nc6 {[%clk 00:15:15]}
{[%emt 00:00:04]} 10. Nb3 {[%clk 00:15:21]} b5 {[%clk 00:14:42]} 11. axb6
{[%clk 00:15:23]} Qxb6 {[%clk 00:14:45]} 12. Be3 {[%clk 00:15:22]} {[%emt
00:00:05]} Qb8 {[%clk 00:14:48]} 13. f4 {[%clk 00:14:13]} Bb7 {[%clk 00:14:26]}
14. Bf3 {[%clk 00:14:12]} Rd8 {[%clk 00:13:43]} 15. Qe2 {[%clk 00:14:07]} Nb4
{[%clk 00:13:21]} 16. Na5 {[%clk 00:13:39]} {[%emt 00:02:32]} d5 {[%clk
00:11:38]} 17. e5 {[%clk 00:13:21]} {[%emt 00:00:10]} Nd7 {[%clk 00:11:33]}
{[%emt 00:00:09]} 18. Bd4 {[%clk 00:12:56]} {[%emt 00:00:42]} Nc6 {[%clk
00:10:39]} {[%emt 00:00:51]} 19. Nxc6 {[%clk 00:12:14]} {[%emt 00:00:45]} Bxc6
{[%clk 00:10:41]} {[%emt 00:00:05]} 20. Rxa6 {[%clk 00:11:35]} {[%emt
00:00:40]} Rxa6 {[%clk 00:10:35]} {[%emt 00:00:12]} 21. Qxa6 {[%clk 00:11:39]}
Qc7 {[%clk 00:10:38]} {[%emt 00:00:06]} 22. Qe2 {[%clk 00:11:29]} {[%emt
00:00:13]} Ra8 {[%clk 00:10:15]} {[%emt 00:00:31]} 23. f5 {[%clk 00:11:22]}
{[%emt 00:00:09]} Bf8 {[%clk 00:09:49]} {[%emt 00:00:29]} 24. fxe6 {[%clk
00:11:02]} {[%emt 00:00:30]} fxe6 {[%clk 00:09:52]} 25. Bg4 {[%clk 00:10:40]}
{[%emt 00:00:25]} Re8 {[%clk 00:09:55]} {[%emt 00:00:06]} 26. Qf2 {[%clk
00:10:18]} {[%emt 00:00:27]} Nb8 {[%clk 00:09:27]} {[%emt 00:00:33]} 27. Bxe6+
{[%clk 00:10:10]} {[%emt 00:00:09]} 1-0

[Event "MČR 2022 rapid"]
[Site "Turnov, Czech Republic"]
[Date "2022.09.11"]
[Round "9.3"]
[White "Bradáč, Daniel"]
[Black "Červený, Martin"]
[Result "0-1"]
[TimeControl "2x 15 min + 5s/move"]
[WhiteElo "2020"]
[BlackElo "2413"]

1. e4 {[%clk 00:15:08]} c5 {[%clk 00:15:09]} 2. Nf3 {[%clk 00:15:11]} {[%emt
00:00:05]} d6 {[%clk 00:15:13]} 3. d3 {[%clk 00:15:14]} Nf6 {[%clk 00:15:15]}
{[%emt 00:00:04]} 4. g3 {[%clk 00:15:18]} g6 {[%clk 00:15:17]} {[%emt
00:00:04]} 5. Bg2 {[%clk 00:15:21]} {[%emt 00:00:04]} Bg7 {[%clk 00:15:21]} 6.
O-O {[%clk 00:15:23]} {[%emt 00:00:04]} O-O {[%clk 00:15:23]} 7. Nbd2 {[%clk
00:15:24]} {[%emt 00:00:04]} Nc6 {[%clk 00:15:24]} {[%emt 00:00:05]} 8. c3
{[%clk 00:15:26]} {[%emt 00:00:04]} e5 {[%clk 00:14:40]} {[%emt 00:00:46]} 9.
a4 {[%clk 00:15:19]} {[%emt 00:00:12]} h6 {[%clk 00:14:27]} {[%emt 00:00:21]}
10. Nc4 {[%clk 00:15:17]} {[%emt 00:00:05]} Be6 {[%clk 00:14:10]} {[%emt
00:00:20]} 11. Ne3 {[%clk 00:15:19]} {[%emt 00:00:06]} d5 {[%clk 00:13:24]}
{[%emt 00:00:50]} 12. exd5 {[%clk 00:14:20]} {[%emt 00:01:11]} Nxd5 {[%clk
00:13:27]} 13. Qe2 {[%clk 00:14:00]} {[%emt 00:00:31]} Re8 {[%clk 00:13:18]}
{[%emt 00:00:10]} 14. Nxd5 {[%clk 00:13:17]} {[%emt 00:00:40]} Bxd5 {[%clk
00:13:20]} {[%emt 00:00:05]} 15. Be3 {[%clk 00:13:18]} {[%emt 00:00:07]} Qd6
{[%clk 00:11:58]} {[%emt 00:01:25]} 16. Rad1 {[%clk 00:12:59]} {[%emt
00:00:21]} Rad8 {[%clk 00:11:59]} {[%emt 00:00:11]} 17. Qc2 {[%clk 00:12:55]}
{[%emt 00:00:05]} b6 {[%clk 00:11:44]} {[%emt 00:00:17]} 18. Rfe1 {[%clk
00:12:23]} {[%emt 00:00:37]} Na5 {[%clk 00:11:42]} {[%emt 00:00:08]} 19. d4
{[%clk 00:09:42]} {[%emt 00:02:45]} cxd4 {[%clk 00:11:06]} {[%emt 00:00:43]} 20.
cxd4 {[%clk 00:09:41]} {[%emt 00:00:08]} e4 {[%clk 00:09:41]} {[%emt 00:01:26]}
21. Bf4 {[%clk 00:06:58]} {[%emt 00:02:48]} Qc6 {[%clk 00:09:14]} {[%emt
00:00:36]} 22. Qxc6 {[%clk 00:06:46]} {[%emt 00:00:14]} Bxc6 {[%clk 00:09:12]}
{[%emt 00:00:15]} 23. Ne5 {[%clk 00:06:49]} Bxa4 {[%clk 00:09:04]} {[%emt
00:00:06]} 24. Rd2 {[%clk 00:06:23]} {[%emt 00:01:01]} g5 {[%clk 00:09:00]} 25.
Be3 {[%clk 00:06:12]} Nb3 {[%clk 00:08:27]} {[%emt 00:00:33]} 26. Rde2 {[%clk
00:05:52]} {[%emt 00:00:24]} Bb5 {[%clk 00:07:48]} {[%emt 00:00:43]} 27. Rc2
{[%clk 00:05:47]} {[%emt 00:00:11]} Nxd4 {[%clk 00:07:52]} 28. Bxd4 {[%clk
00:05:34]} {[%emt 00:00:20]} Rxd4 {[%clk 00:07:55]} 29. Ng4 {[%clk 00:05:26]}
{[%emt 00:00:15]} Rb4 {[%clk 00:07:23]} {[%emt 00:00:36]} 30. h4 {[%clk
00:04:17]} {[%emt 00:01:14]} gxh4 {[%clk 00:07:12]} {[%emt 00:00:16]} 31. gxh4
{[%clk 00:04:20]} {[%emt 00:00:05]} a5 {[%clk 00:06:05]} {[%emt 00:01:10]} 32.
Re3 {[%clk 00:03:57]} {[%emt 00:00:29]} f5 {[%clk 00:05:58]} {[%emt 00:00:11]}
33. Nh2 {[%clk 00:02:59]} {[%emt 00:01:07]} f4 {[%clk 00:06:01]} 34. Re1 {[%clk
00:02:58]} {[%emt 00:00:05]} Bd3 {[%clk 00:05:59]} {[%emt 00:00:09]} 35. Rd2
{[%clk 00:02:55]} {[%emt 00:00:08]} Kf7 {[%clk 00:05:37]} {[%emt 00:00:31]} 36.
Rc1 {[%clk 00:01:45]} {[%emt 00:01:08]} Rxb2 {[%clk 00:05:33]} {[%emt
00:00:09]} 37. Rc7+ {[%clk 00:01:38]} {[%emt 00:00:12]} Re7 {[%clk 00:05:34]}
{[%emt 00:00:10]} 38. Rxb2 {[%clk 00:01:35]} {[%emt 00:00:05]} Rxc7 {[%clk
00:05:00]} {[%emt 00:00:35]} 39. Rxb6 {[%clk 00:01:38]} {[%emt 00:00:05]} Rc1+
{[%clk 00:04:50]} {[%emt 00:00:13]} 40. Nf1 {[%clk 00:01:39]} {[%emt 00:00:05]}
Bd4 {[%clk 00:04:24]} {[%emt 00:00:34]} 41. Rd6 {[%clk 00:01:27]} {[%emt
00:00:16]} Bc5 {[%clk 00:04:26]} 42. Rxh6 {[%clk 00:01:15]} {[%emt 00:00:16]}
e3 {[%clk 00:04:23]} {[%emt 00:00:08]} 43. fxe3 {[%clk 00:01:19]} fxe3 {[%clk
00:04:12]} {[%emt 00:00:21]} 0-1